Workbook

Sheet ReadMe
A1: Response Spectrum
A3: Coded by | B3: Kazuyuki Izuno | D3: Prof., Dept. of Civil & Environmental Eng., Ritsumeikan University
D4: izuno@se.ritsumei.ac.jp
A6: Usage
A7: 1 | B7: Input "number of data", "time increment" and "damping factor" in A-column.
A8: 2 | B8: Paste "Time (s)" and "Earthquake acceleration (cm/s/s)" data to B- and C-columns.
B9: Be care to delete the previous record before pasting new data.
A10: 3 | B10: Change the periods in D-column if necessary.
A11: 4 | B11: Click the Macros command button on the View tab, and select "respspec."
A13: Versions | B13: 2016-04-20 | C13: ver.1.0
B14: 2016-05-24 | C14: ver.2.0 | D14: Bug fix
B15: 2022-06-11 | C15: ver.2.2 | D15: Calculate SI

Sheet Calc
A1: Number of Data | B1: Time (s) | C1: Earthquake Acc. (cm/s/s) | D1: Period (s) | E1: Acc. Spectrum (cm/s/s) | F1: Vel. Spectrum (cm/s) | G1: Dis. Spectrum (cm)
A2: 1500 | B2: 0 | C2: 0 | D2: 0 | E2: 817.82 | F2: 0 | G2: 0
A3: Time increment | B3: =B2+$A$4 -> 0.02 | C3: 0 | D3: 0.1 | E3: 912.4450751 | F3: 6.015616148 | G3: 0.2312255885
A4: 0.02 | B4: =B3+$A$4 -> 0.04 | C4: 0.03 | D4: 0.2 | E4: 1031.981285 | F4: 22.26119256 | G4: 1.061961916
A5: Damping factor | B5: 0.06 | C5: 0.03 | D5: 0.3 | E5: 1837.709621 | F5: 68.83324322 | G5: 4.183739701
A6: 0.05 | B6: 0.08 | C6: 0.03 | D6: 0.4 | E6: 2227.054827 | F6: 135.4950716 | G6: 9.03150417
A7: Spectrum Intensity SI | B7: 0.1 | C7: 0.03 | D7: 0.5 | E7: 2091.108925 | F7: 163.2672022 | G7: 13.24160954
A8: 114.5882113 | B8: 0.12 | C8: 0.03 | D8: 0.6 | E8: 1576.474953 | F8: 158.8892385 | G8: 14.34866076
B9: 0.14 | C9: 0.03 | D9: 0.7 | E9: 1919.63247 | F9: 217.1084581 | G9: 23.73973948
B10: 0.16 | C10: 0.03 | D10: 0.8 | E10: 1857.022015 | F10: 249.1923856 | G10: 30.02138807
B11: 0.18 | C11: 0.03 | D11: 0.9 | E11: 1784.789547 | F11: 252.5528705 | G11: 36.57128197
B12: 0.2 | C12: 0.03 | D12: 1 | E12: 1502.091356 | F12: 244.981503 | G12: 37.84884263
B13: 0.22 | C13: 0.03 | D13: 1.1 | E13: 1200.583423 | F13: 236.9661997 | G13: 36.43801182
B14: 0.24 | C14: 0.03 | D14: 1.2 | E14: 904.8955951 | F14: 212.9161859 | G14: 32.43916702
B15: 0.26 | C15: 0.03 | D15: 1.3 | E15: 918.5757178 | F15: 185.334061 | G15: 38.88717052
B16: 0.28 | C16: 0 | D16: 1.4 | E16: 913.8305151 | F16: 215.5208817 | G16: 44.49629399
B17: 0.3 | C17: 0 | D17: 1.5 | E17: 785.6859954 | F17: 229.2297822 | G17: 44.62869059
B18: 0.32 | C18: 0 | D18: 1.6 | E18: 646.4823204 | F18: 213.1698723 | G18: 41.61417001
B19: 0.34 | C19: -0.03 | D19: 1.7 | E19: 574.2450007 | F19: 182.7914026 | G19: 42.55038857
B20: 0.36 | C20: -0.03 | D20: 1.8 | E20: 509.0921179 | F20: 177.7478061 | G20: 41.8798915
B21: 0.38 | C21: -0.03 | D21: 1.9 | E21: 439.6804548 | F21: 169.382513 | G21: 40.16595392
B22: 0.4 | C22: 0 | D22: 2 | E22: 378.3729029 | F22: 160.3522371 | G22: 37.92354535
B23: 0.42 | C23: 0.03 | D23: 2.5 | E23: 221.4295825 | F23: 120.4782131 | G23: 36.15263873
B24: 0.44 | C24: 0.03 | D24: 3 | E24: 170.5759952 | F24: 90.785877 | G24: 37.31698474
B25: 0.46 | C25: 0.03 | D25: 4 | E25: 86.37333136 | F25: 85.01449913 | G25: 32.63902389
B26: 0.48 | C26: 0.03 | D26: 5 | E26: 50.33612154 | F26: 81.8808795 | G26: 28.42077324
B27: 0.5 | C27: 0.03
B28: 0.52 | C28: 0.03
B29: 0.54 | C29: 0.03
B30: 0.56 | C30: 0.03
B31: 0.58 | C31: 0
B32: 0.6 | C32: 0
B33: 0.62 | C33: -0.03
B34: 0.64 | C34: -0.06
B35: 0.66 | C35: -0.21
B36: 0.68 | C36: -0.33
B37: 0.7 | C37: -0.36
B38: 0.72 | C38: -0.42
B39: 0.74 | C39: -0.36
B40: 0.76 | C40: -0.18
B41: 0.78 | C41: -0.18
B42: 0.8 | C42: -0.15
B43: 0.82 | C43: -0.12
B44: 0.84 | C44: -0.36
B45: 0.86 | C45: -1.02
B46: 0.88 | C46: -1.5
B47: 0.9 | C47: -1.08
B48: 0.92 | C48: -0.9
B49: 0.94 | C49: -1.17
B50: 0.96 | C50: -0.45
B51: 0.98 | C51: 0.75
B52: 1 | C52: 0.72
B53: 1.02 | C53: -0.33
B54: 1.04 | C54: -1.97
B55: 1.06 | C55: -2.87
B56: 1.08 | C56: -1.73
B57: 1.1 | C57: -0.33
B58: 1.12 | C58: -0.9
B59: 1.14 | C59: -0.42
B60: 1.16 | C60: 3.26
B61: 1.18 | C61: 3.53
B62: 1.2 | C62: -2
B63: 1.22 | C63: -6.34
B64: 1.24 | C64: -5.65
B65: 1.26 | C65: -3.59
B66: 1.28 | C66: -4.07
B67: 1.3 | C67: -2.51
B68: =B67+$A$4 -> 1.32 | C68: 0.21
B69: 1.34 | C69: -0.48
B70: 1.36 | C70: -4.51
B71: 1.38 | C71: -9.27
B72: 1.4 | C72: -5.65
B73: 1.42 | C73: 2.54
B74: 1.44 | C74: 4.69
B75: 1.46 | C75: 4.46
B76: 1.48 | C76: 9.24
B77: 1.5 | C77: 13.66
B78: 1.52 | C78: 8.22
B79: 1.54 | C79: 6.64
B80: 1.56 | C80: 4.01
B81: 1.58 | C81: -6.49
B82: 1.6 | C82: -11.03
B83: 1.62 | C83: 0.45
B84: 1.64 | C84: 14.89
B85: 1.66 | C85: 2.21
B86: 1.68 | C86: -8.01
B87: 1.7 | C87: 4.43
B88: 1.72 | C88: 15.88
B89: 1.74 | C89: 24.4
B90: 1.76 | C90: 36.6
B91: 1.78 | C91: 38.27
B92: 1.8 | C92: 20.12
B93: 1.82 | C93: 3.59
B94: 1.84 | C94: -1.79
B95: 1.86 | C95: 0.03
B96: 1.88 | C96: 14.77
B97: 1.9 | C97: 3.41
B98: 1.92 | C98: -40.04
B99: 1.94 | C99: -49.6
B100: 1.96 | C100: -36
B101: 1.98 | C101: -21.95
B102: 2 | C102: -9.6
B103: 2.02 | C103: -0.87
B104: 2.04 | C104: 0.39
B105: 2.06 | C105: -20.6
B106: 2.08 | C106: -31.28
B107: 2.1 | C107: -24.85
B108: 2.12 | C108: -13.99
B109: 2.14 | C109: 3.68
B110: 2.16 | C110: 10.97
B111: 2.18 | C111: -2.09
B112: 2.2 | C112: -16.71
B113: 2.22 | C113: -16.33
B114: 2.24 | C114: -12.71
B115: 2.26 | C115: -9.9
B116: 2.28 | C116: -4.51
B117: 2.3 | C117: -4.04
B118: 2.32 | C118: -5.8
B119: 2.34 | C119: -13.51
B120: 2.36 | C120: -26.64
B121: 2.38 | C121: -20.6
B122: 2.4 | C122: 24.1
B123: 2.42 | C123: 65.27
B124: 2.44 | C124: 44.7
B125: 2.46 | C125: 0.87
B126: 2.48 | C126: -14.83
B127: 2.5 | C127: 7.33
B128: 2.52 | C128: 30.41
B129: 2.54 | C129: 13.4
B130: 2.56 | C130: -11.96
B131: 2.58 | C131: -24.01
B132: =B131+$A$4 -> 2.6 | C132: -28.38
B133: 2.62 | C133: -14.02
B134: 2.64 | C134: -10.61
B135: 2.66 | C135: -5.35
B136: 2.68 | C136: 13.45
B137: 2.7 | C137: 18.3
B138: 2.72 | C138: 27.93
B139: 2.74 | C139: 33.04
B140: 2.76 | C140: 31.48
B141: 2.78 | C141: 39.98
B142: 2.8 | C142: 8.58
B143: 2.82 | C143: -23.41
B144: 2.84 | C144: -38.84
B145: 2.86 | C145: -26.1
B146: 2.88 | C146: 26.88
B147: 2.9 | C147: 21.02
B148: 2.92 | C148: 9.3
B149: 2.94 | C149: 15.4
B150: 2.96 | C150: 13.69
B151: 2.98 | C151: 25.3
B152: 3 | C152: 7.33
B153: 3.02 | C153: -17.34
B154: 3.04 | C154: -23.62
B155: 3.06 | C155: -20.81
B156: 3.08 | C156: -12.62
B157: 3.1 | C157: -28.46
B158: 3.12 | C158: -28.46
B159: 3.14 | C159: -15.58
B160: 3.16 | C160: -15.04
B161: 3.18 | C161: 6.52
B162: 3.2 | C162: 22.37
B163: 3.22 | C163: 21.62
B164: 3.24 | C164: 15.94
B165: 3.26 | C165: -0.75
B166: 3.28 | C166: -4.43
B167: 3.3 | C167: 15.94
B168: 3.32 | C168: 25.06
B169: 3.34 | C169: 18.21
B170: 3.36 | C170: 16.71
B171: 3.38 | C171: 16.59
B172: 3.4 | C172: -9.42
B173: 3.42 | C173: -24.7
B174: 3.44 | C174: -2.81
B175: 3.46 | C175: 36.45
B176: 3.48 | C176: 28.85
B177: 3.5 | C177: -22.07
B178: 3.52 | C178: -40.51
B179: 3.54 | C179: -13.66
B180: 3.56 | C180: 4.25
B181: 3.58 | C181: -13.31
B182: 3.6 | C182: -25.62
B183: 3.62 | C183: 12.32
B184: 3.64 | C184: 42.22
B185: 3.66 | C185: 0.09
B186: 3.68 | C186: -60.1
B187: 3.7 | C187: -69.97
B188: 3.72 | C188: -13.78
B189: 3.74 | C189: 24.19
B190: 3.76 | C190: -2.18
B191: 3.78 | C191: -8.64
B192: 3.8 | C192: 22.57
B193: 3.82 | C193: 45.24
B194: 3.84 | C194: 30.47
B195: 3.86 | C195: -15.73
B196: =B195+$A$4 -> 3.88 | C196: -21.05
B197: 3.9 | C197: 45.03
B198: 3.92 | C198: 87.13
B199: 3.94 | C199: 50.86
B200: 3.96 | C200: 16
... 1301 more rows
